Cogmind - Beta 13 @@@ ROGUE MODE // 2024.04.22 @ 00:58:58 Player: Peregrine Result: Destroyed by G-50 Soldier with Heavy Laser Performance ------------- Evolutions (5) 2500 Regions Visited (12) 2400 Robots Destroyed (105) 525 Value Destroyed (3123) 3123 Prototype IDs (8) 160 Alien Tech Used (0) 0 Bonus (786) 786 TOTAL SCORE: 9494 Bonus ------- High Alert Combat Kills 253 Follower Combat Kills 53 Entered DSFs 500 Friendly Fire -20 Cogmind --------- Core Integrity 0/1000 Matter 44/300 Energy 29/100 System Corruption 5% Temperature Cool (11) Movement Hovering (120) Ox1 Location -5/Extension Parts ------- > --- POWER (2) -------- (None) > --- PROPULSION (6) --- Antigrav System > --- UTILITY (7) ------ Improved Melee Analysis Suite > --- WEAPON (2) ------- Mass Driver Mass Driver > --- INVENTORY (5) ---- Improved Recalibrator Peak State ------------ > --- POWER ------------ Light Fission Core > --- PROPULSION ------- Combat Gravmag System Combat Gravmag System Combat Gravmag System Nuclear Pulse Array > --- UTILITY ---------- Medium Storage Unit Improved Melee Analysis Suite Advanced Melee Analysis Suite Transmission Jammer Improved Propulsion Shielding Improved Propulsion Shielding Hacking Suite > --- WEAPON ----------- Heavy Flak Cannon > --- INVENTORY -------- Combat Gravmag System Nuclear Pulse Array Nuclear Pulse Array Advanced Terrain Scan Processor Advanced Field Recycling Unit [Rating: 67] Favorites ----------- Power Light Ion Engine Engine Light Ion Engine Power Core Light Nuclear Core Propulsion Light Treads Treads Light Treads Leg Improved Aluminum Leg Hover Unit Combat Gravmag System Flight Unit Flight Unit Utility Melee Analysis Suite Device Advanced Weight Redist. System Storage Small Storage Unit Processor Melee Analysis Suite Hackware Hacking Suite Protection Improved Light Armor Plating Weapon Katana Energy Gun Particle Gun Energy Cannon Advanced Plasma Cannon Ballistic Gun Light Assault Rifle Ballistic Cannon Heavy Flak Cannon Launcher Long-range Missile Launcher Special Weapon Plasma Cutter Impact Weapon Great Maul Slashing Weapon Katana Build | -11 -10 -10 -9 -9 -8 -7 -7 -7 -6 -6 -5 -5 ------- Run | Yrd Mat Min Mat Sto Mat Fac Low Low Fac DSF Fac Ext Slots Evolved 10 | . . . 2 . 2 2 . . 2 . 2 . Power 1 | . . . . . . . . . 1 . . . Propulsion 4 | . . . 1 . 1 1 . . . . 1 . Utility 5 | . . . 1 . 1 1 . . 1 . 1 . Weapon . | . . . . . . . . . . . . . Parts Attached 179 | . 17 1 13 27 67 6 7 . 7 14 14 6 Power 21 | . 3 . 2 3 8 1 2 . 1 . 1 . Engine 13 | . 2 . 2 2 7 . . . . . . . Core 8 | . 1 . . 1 1 1 2 . 1 . 1 . Reactor . | . . . . . . . . . . . . . Propulsion 78 | . 8 . 7 9 29 4 1 . 1 9 7 3 Treads 33 | . . . 3 6 20 4 . . . . . . Leg 9 | . 2 . 4 1 2 . . . . . . . Wheel . | . . . . . . . . . . . . . Hover 8 | . . . . . 1 . . . . . 4 3 Flight 28 | . 6 . . 2 6 . 1 . 1 9 3 . Utility 37 | . 1 . 2 3 20 . 3 . 3 . 4 1 Device 10 | . . . . . 5 . 3 . . . 1 1 Storage 15 | . . . . 2 12 . . . . . 1 . Processor 7 | . 1 . 2 . 2 . . . 2 . . . Hackware 1 | . . . . . . . . . 1 . . . Protection 4 | . . . . 1 1 . . . . . 2 . Artifact . | . . . . . . . . . . . . . Weapon 43 | . 5 1 2 12 10 1 1 . 2 5 2 2 Energy Gun 8 | . 1 . . 2 5 . . . . . . . Energy Cannon 2 | . . . . 1 . . . . . . 1 . Ballistic Gun 13 | . 4 1 . 2 5 1 . . . . . . Ballistic Cannon 6 | . . . . . . . . . . 3 1 2 Launcher 3 | . . . . . . . . . 1 2 . . Special Weapon 1 | . . . . . . . 1 . . . . . Impact Weapon 1 | . . . . . . . . . 1 . . . Slashing Weapon 9 | . . . 2 7 . . . . . . . . Piercing Weapon . | . . . . . . . . . . . . . Special Melee Weapon . | . . . . . . . . . . . . . Unidentified Prototypes 8 | . . . . 5 3 . . . . . . . Parts Lost 54 | . 5 . . 5 9 3 11 . . 5 11 5 Power 7 | . 1 . . 1 1 . 2 . . . 2 . Propulsion 25 | . 2 . . 2 6 2 4 . . 3 2 4 Utility 11 | . . . . 1 . . 2 . . 2 5 1 Weapon 11 | . 2 . . 1 2 1 3 . . . 2 . Highest Loss Streak 11 | . 5 . . 2 3 3 8 . . 5 10 11 To Critical Strikes . | . . . . . . . . . . . . . Average Slot Usage (%) 78 | . 84 100 98 97 89 82 35 38 48 62 55 16 Engine 6 | . 11 14 11 8 7 2 . . . . . . Core 1 | . 1 . . 1 . 4 3 7 5 6 3 . Treads 15 | . . . 3 26 29 36 7 . . . . . Leg 5 | . 9 28 28 4 . . . . . . . . Flight 4 | . 17 . . . 2 . 1 7 11 17 9 4 Device 4 | . . . . . 8 . 6 15 13 10 5 3 Storage 7 | . 14 14 11 9 8 7 1 . . . 2 . Processor 11 | . 5 14 21 22 7 7 7 7 12 16 8 5 Protection 2 | . . . . 1 6 7 . . . . 3 . Energy Gun 2 | . 10 1 . . 4 7 . . . . . . Ballistic Gun 6 | . 13 26 2 . 10 6 1 . . . . . Slashing Weapon 6 | . . . 19 21 2 . . . . . . . Naked Turns . | . . . . . . . . . . . . . Heaviest Build 95 | 13 14 16 16 16 95 57 54 6 15 19 46 18 Greatest Support 100 | 20 26 26 66 66 92 100 100 13 19 29 56 26 Greatest Overweight (x) 2 | . 2 . . 2 2 . 2 . . 1 1 1 Average Overweight (x) . | . . . . . . . . . . . . . Largest Inventory Capacity 25 | . 8 8 8 25 25 20 20 5 5 5 10 5 Average Capacity 9 | . 8 8 8 7 14 20 8 5 5 5 7 5 Most Carried 12 | . 8 8 8 8 12 9 6 4 5 5 8 5 Average Carried 5 | . 7 7 7 5 7 6 4 4 4 4 4 . Final Capacity 20 | 8 8 8 8 5 20 20 5 5 5 5 5 5 Final Carried 9 | 6 8 8 8 5 9 6 4 4 5 4 . 1 Class Distribution -------------------- 43% | Mutant 27% | Gladiator 24% | Scavenger-Mutant Dominant Class ---------------- Mutant | -10/Materials Mutant | -10/Mines Gladiator | -9/Materials Gladiator | -9/Storage Scavenger-Mutant | -8/Materials Scavenger-Mutant | -7/Factory Mutant | -7/Lower Caves Mutant | -7/Lower Caves Mutant | -6/Factory Mutant | -6/DSF Mutant | -5/Factory Mutant | -5/Extension Resources | -11 -10 -10 -9 -9 -8 -7 -7 -7 -6 -6 -5 -5 ----------- Run | Yrd Mat Min Mat Sto Mat Fac Low Low Fac DSF Fac Ext Matter Collected 2270 | 200 225 38 134 286 1029 71 66 . . 82 139 . Remotely . | . . . . . . . . . . . . . Salvage Created 4064 | . 358 . 290 1199 1904 32 203 . . 78 . . Parts 255 | . 17 . 21 76 118 . 6 . . 17 . . Haulers Intercepted 7 | . 2 . . 1 4 . . . . . . . Recyclers Shooed 3 | . 1 . . 2 . . . . . . . . Parts Field Recycled 2 | . . . . . . . . . . . 2 . Retrieved Matter 18 | . . . . . . . . . . . 18 . Parts Self-Destructed 8 | . . . . . . . 8 . . . . . Prevented . | . . . . . . . . . . . . . Kills | -11 -10 -10 -9 -9 -8 -7 -7 -7 -6 -6 -5 -5 ------- Run | Yrd Mat Min Mat Sto Mat Fac Low Low Fac DSF Fac Ext Combat Hostiles Destroyed 81 | . 8 1 7 20 33 1 4 . . 7 . . Melee 27 | . . . 7 20 . . . . . . . . Guns 42 | . 8 1 . . 31 . 2 . . . . . Cannons 8 | . . . . . . . 2 . . 6 . . AOE 3 | . . . . . 2 . . . . 1 . . Classes Destroyed 15 | . 3 1 2 6 . 1 . . . 2 . . Worker 5 | . . . . 5 . . . . . . . . Builder 4 | . . . 1 1 2 . . . . . . . Hauler 7 | . 2 . . 1 4 . . . . . . . Recycler 4 | . . . . 2 2 . . . . . . . Mechanic 1 | . . . . 1 . . . . . . . . Watcher 3 | . . . . 1 2 . . . . . . . Swarmer 16 | . 3 . 1 4 8 . . . . . . . Cutter 6 | . . . . . . . . . . 6 . . Grunt 34 | . 5 . 5 7 14 . 3 . . . . . Brawler 3 | . . . . 1 1 . 1 . . . . . Duelist 4 | . . . . 2 2 . . . . . . . Sentry 15 | . . . 1 6 8 . . . . . . . Demolisher 1 | . . 1 . . . . . . . . . . Programmer 1 | . . . . . . 1 . . . . . . Heavy 1 | . . . . . . . . . . 1 . . Best Kill Streak 11 | . 3 1 4 6 11 1 2 . . 6 . . Combat Bots Only 9 | . 3 1 4 6 9 1 2 . . 6 . . Max Kills in Single Turn 3 | . 1 1 1 1 2 1 1 . . 3 . . Gunslinging . | . . . . . . . . . . . . . Exploded 2 | . . . . . 2 . . . . 1 . . Melee 1 | . . . 1 1 . . . . . . . . Uniques/NPCs Destroyed . | . . . . . . . . . . . . . Combat | -11 -10 -10 -9 -9 -8 -7 -7 -7 -6 -6 -5 -5 -------- Run | Yrd Mat Min Mat Sto Mat Fac Low Low Fac DSF Fac Ext Hostile Shots Fired 804 | . 66 . 24 128 179 27 125 . . 44 133 78 Missed 246 | . 17 . 3 37 44 8 44 . . 19 48 26 Damage Taken 9511 | . 579 . 231 1384 1955 335 1314 . 67 765 1756 1125 Core 2705 | . 202 . 41 234 310 42 634 . 67 175 361 639 Absorbed by Shields 51 | . . . . . . . . . . . . 51 Redirected to Shielding 206 | . . . . . . . . . . . 206 . Core Remaining (%) 44 | 100 . 19 . 31 43 . . 3 . 71 . . Volleys Fired 200 | . 44 3 . . 107 12 19 . . 12 3 . Largest 2 | . 2 2 . . 2 2 2 . . 2 1 . Hottest 106 | . 60 53 . . 90 90 85 . . 106 53 . Shots Fired 350 | . 76 7 . . 195 22 32 . . 15 3 . Gun 326 | . 76 7 . . 195 22 26 . . . . . Cannon 10 | . . . . . . . . . . 7 3 . Launcher 8 | . . . . . . . . . . 8 . . Special 6 | . . . . . . . 6 . . . . . Kinetic 208 | . 44 6 . . 121 10 17 . . 7 3 . Thermal 113 | . 32 1 . . 53 12 15 . . . . . Explosive 8 | . . . . . . . . . . 8 . . Electromagnetic 21 | . . . . . 21 . . . . . . . Robot Hit Streak 19 | . 12 3 . . 19 10 10 . . 3 4 . Robot Miss Streak 11 | . 2 1 . . 6 2 2 . . 11 2 . Penetration Max . | . . . . . . . . . . . . . Secondary Targets 5 | . 1 . . . 3 . 1 . . . . . Max Gunslinging Chain 1 | . 1 . . . 1 . 1 . . . . . Shots Hit Robots 351 | . 56 5 16 78 142 17 24 . . 10 3 . Core Hits 185 | . 24 2 7 29 83 1 14 . . 21 3 1 Critical Kills 1 | . . . . . 1 . . . . . . . Critical Parts Destroyed 2 | . 1 . . . 1 . . . . . . . Critical Strikes 12 | . 1 . 1 7 3 . . . . . . . Burn 1 | . . . . . 1 . . . . . . . Destroy 3 | . 1 . . . 2 . . . . . . . Sever 8 | . . . 1 7 . . . . . . . . Melee Attacks 122 | . . . 21 98 3 . . . . . . . Impact . | . . . . . . . . . . . . . Slashing 122 | . . . 21 98 3 . . . . . . . Piercing . | . . . . . . . . . . . . . Sneak Attacks 16 | . . . 1 14 1 . . . . . . . Combat Hostiles . | . . . . . . . . . . . . . Follow-up Attacks 17 | . . . 2 15 . . . . . . . . Damage Inflicted 7480 | . 594 72 582 3016 2209 256 249 . . 321 145 36 Guns 3149 | . 594 72 . . 2038 256 189 . . . . . Cannons 232 | . . . . . . . . . . 159 73 . Explosions 214 | . . . . . 53 . . . . 161 . . Melee 3705 | . . . 582 3016 107 . . . . . . . Ramming 123 | . . . . . 11 . 3 . . 1 72 36 Kinetic 1982 | . 317 62 . . 1195 59 117 . . 159 73 . Thermal 1190 | . 277 10 . . 577 197 129 . . . . . Explosive 161 | . . . . . . . . . . 161 . . Electromagnetic 319 | . . . . . 319 . . . . . . . Impact . | . . . . . . . . . . . . . Slashing 3705 | . . . 582 3016 107 . . . . . . . Piercing . | . . . . . . . . . . . . . Highest Corruption 8 | . 4 4 . 3 . 3 8 8 . . 4 5 Average Corruption 3 | . 3 4 . 1 . 2 7 8 . . 2 4 Corruption Purged . | . . . . . . . . . . . . . Corruption Blocked . | . . . . . . . . . . . . . Effects 55 | . 5 9 . 11 . 5 11 1 . . 2 11 Message Errors 16 | . 2 4 . 3 . 1 1 . . . . 5 Matter Fused 15 | . 1 1 . 3 . 2 5 1 . . . 2 Heat Flow Errors 4 | . . 1 . . . . 1 . . . 1 1 Energy Discharges 7 | . 1 1 . 3 . . . . . . 1 1 Parts Fused 1 | . . . . . . . . . . . . 1 Data Loss (minor) 4 | . 1 . . . . . 3 . . . . . Data Loss (major) 6 | . . 1 . 2 . 1 1 . . . . 1 Misfires 1 | . . 1 . . . . . . . . . . Weapon Failures 1 | . . . . . . 1 . . . . . . Overload Shots . | . . . . . . . . . . . . . Overflow Damage 275 | . . . 44 231 . . . . . . . . Projectiles . | . . . . . . . . . . . . . Explosions . | . . . . . . . . . . . . . Melee 275 | . . . 44 231 . . . . . . . . Knockbacks 11 | . . . . . . . . . . 6 5 . Impact . | . . . . . . . . . . . . . Kinetic 11 | . . . . . . . . . . 6 5 . Secondary . | . . . . . . . . . . . . . Self-Inflicted Damage 65 | . . . . . . . 1 . . . 34 30 Shots . | . . . . . . . . . . . . . Rammed 21 | . . . . . 4 . 3 . . 2 11 1 Targets Rammed 21 | . . . . . 4 . 3 . . 2 11 1 Kicked . | . . . . . . . . . . . . . Crushed . | . . . . . . . . . . . . . Highest Temperature 359 | . 179 90 . 8 359 113 234 . . . 121 163 Average Temperature 67 | . 67 25 . 6 72 52 76 . . . 35 91 Received Heat Transfer 2316 | . 294 . 78 405 747 . 306 . . . 54 432 Effects 1 | . . . . . 1 . . . . . . . Short Circuit 1 | . . . . . 1 . . . . . . . Siege Activations . | . . . . . . . . . . . . . Robots Corrupted . | . . . . . . . . . . . . . Combat Hostiles . | . . . . . . . . . . . . . Parts Fried 1 | . . . . . 1 . . . . . . . Impact Corruptions . | . . . . . . . . . . . . . Robots Melted 1 | . . . . . . 1 . . . . . . Combat Hostiles 1 | . . . . . . 1 . . . . . . Parts Melted 3 | . 1 . . . 1 1 . . . . . . Heat Transferred 2933 | . 650 37 . . 1506 370 370 . . . . . Parts Sabotaged . | . . . . . . . . . . . . . Parts Stolen . | . . . . . . . . . . . . . Parts Stripped . | . . . . . . . . . . . . . Power Chain Reactions 1 | . . . . . 1 . . . . . . . Alert | -11 -10 -10 -9 -9 -8 -7 -7 -7 -6 -6 -5 -5 ------- Run | Yrd Mat Min Mat Sto Mat Fac Low Low Fac DSF Fac Ext Peak Influence 609 | . 150 85 241 535 609 276 . . 146 285 344 208 Initial 276 | . . 29 33 101 225 276 . . 146 105 149 158 Average 249 | . 100 40 85 282 405 273 . . 146 182 231 176 Maximum Alert Level 2 | . . . 1 2 2 1 . . . 1 1 1 Low Security (%) 43 | . 100 100 95 33 . . . . 100 47 41 71 Level 1 35 | . . . 4 50 40 100 . . . 52 58 28 Level 2 20 | . . . . 16 59 . . . . . . . Level 3 . | . . . . . . . . . . . . . Level 4 . | . . . . . . . . . . . . . Level 5 . | . . . . . . . . . . . . . High Security . | . . . . . . . . . . . . . Max Security . | . . . . . . . . . . . . . Squads Dispatched 17 | . 1 . 1 2 8 1 . . . 2 1 1 Investigation . | . . . . . . . . . . . . . Extermination 2 | . . . . . . 1 . . . . 1 . Reinforcement 11 | . 1 . 1 1 5 . . . . 2 . 1 Assault 1 | . . . . 1 . . . . . . . . Garrison 3 | . . . . . 3 . . . . . . . Intercept . | . . . . . . . . . . . . . Searches Triggered . | . . . . . . . . . . . . . Construction Impeded 1 | . . . . . 1 . . . . . . . Haulers Reinforced . | . . . . . . . . . . . . . Active Scanning Responses . | . . . . . . . . . . . . . Cargo Convoy Interrupts . | . . . . . . . . . . . . . Stealth | -11 -10 -10 -9 -9 -8 -7 -7 -7 -6 -6 -5 -5 --------- Run | Yrd Mat Min Mat Sto Mat Fac Low Low Fac DSF Fac Ext Distress Signals 8 | . 2 . 1 2 1 . . . . . 1 1 Communications Jammed 54 | . . . . . . . . . . 7 47 . Distress Signals 47 | . . . . . . . . . . . 47 . Times Spotted 155 | . 10 2 10 24 44 1 16 . . 12 22 14 Peak Tracking Total 9 | . 4 2 3 5 6 1 7 . . 7 9 9 Tactical Retreats 13 | . 1 . . . . . 4 . . 1 6 1 Traps | -11 -10 -10 -9 -9 -8 -7 -7 -7 -6 -6 -5 -5 ------- Run | Yrd Mat Min Mat Sto Mat Fac Low Low Fac DSF Fac Ext Traps Triggered 15 | . 2 . . 3 3 2 . . 1 . 3 1 Indirectly . | . . . . . . . . . . . . . Trap Hack Attempts . | . . . . . . . . . . . . . Triggered . | . . . . . . . . . . . . . Disarmed . | . . . . . . . . . . . . . Reprogrammed . | . . . . . . . . . . . . . Reused . | . . . . . . . . . . . . . Traps Extracted . | . . . . . . . . . . . . . Installed . | . . . . . . . . . . . . . Triggered . | . . . . . . . . . . . . . Machines | -11 -10 -10 -9 -9 -8 -7 -7 -7 -6 -6 -5 -5 ---------- Run | Yrd Mat Min Mat Sto Mat Fac Low Low Fac DSF Fac Ext Machines Disabled 3 | . . . . 2 . . . . . . . 1 Max in Single Turn 1 | . . . . 1 . . . . . . . 1 Garrison Access 1 | . . . . 1 . . . . . . . . Energy Cycler 1 | . . . . . . . . . . . . 1 Machines Repaired . | . . . . . . . . . . . . . Machines Dismantled . | . . . . . . . . . . . . . Machines Sabotaged . | . . . . . . . . . . . . . Overloaded Fab Kills . | . . . . . . . . . . . . . Hacking | -11 -10 -10 -9 -9 -8 -7 -7 -7 -6 -6 -5 -5 --------- Run | Yrd Mat Min Mat Sto Mat Fac Low Low Fac DSF Fac Ext Machines Accessed 19 | . 1 . 4 6 2 . . . 2 . 4 . Terminals 13 | . . . 3 5 2 . . . 1 . 2 . Fabricators 2 | . . . . . . . . . . . 2 . Repair Stations 3 | . 1 . 1 . . . . . 1 . . . Recycling Units . | . . . . . . . . . . . . . Scanalyzers . | . . . . . . . . . . . . . Garrison Access 1 | . . . . 1 . . . . . . . . Total Hacks 33 | . 1 . 6 14 4 . . . 2 . 6 . Successful 19 | . 1 . 3 8 3 . . . 1 . 3 . Failed 14 | . . . 3 6 1 . . . 1 . 3 . Catastrophic 1 | . . . . . . . . . . . 1 . Database Lockouts . | . . . . . . . . . . . . . Manual 15 | . . . 5 7 3 . . . . . . . Terminals 25 | . . . 5 12 4 . . . 1 . 3 . Fabricators 3 | . . . . . . . . . . . 3 . Repair Stations 3 | . 1 . 1 . . . . . 1 . . . Recycling Units . | . . . . . . . . . . . . . Scanalyzers . | . . . . . . . . . . . . . Garrison Access 2 | . . . . 2 . . . . . . . . Terminal Hacks 7 | . . . . 3 1 . . . 1 . 2 . Record 2 | . . . . 2 . . . . . . . . Open Door 1 | . . . . 1 . . . . . . . . Open DSF 3 | . . . . . . . . . 1 . 2 . Unreport Threat 1 | . . . . . 1 . . . . . . . Fabricator Hacks 1 | . . . . . . . . . . . 1 . Network Status 1 | . . . . . . . . . . . 1 . Repair Station Hacks 2 | . 1 . 1 . . . . . . . . . Scan Component 1 | . . . 1 . . . . . . . . . Refit 1 | . 1 . . . . . . . . . . . Recycling Unit Hacks . | . . . . . . . . . . . . . Scanalyzer . | . . . . . . . . . . . . . Garrison Access Hacks 2 | . . . . 2 . . . . . . . . Unlock Access 1 | . . . . 1 . . . . . . . . Coupler Status 1 | . . . . 1 . . . . . . . . Unauthorized Hacks 7 | . . . 2 3 2 . . . . . . . Terminals 7 | . . . 2 3 2 . . . . . . . Botnet 7 | . . . 2 3 2 . . . . . . . Fabricators . | . . . . . . . . . . . . . Repair Stations . | . . . . . . . . . . . . . Recycling Units . | . . . . . . . . . . . . . Scanalyzers . | . . . . . . . . . . . . . Garrison Access . | . . . . . . . . . . . . . Data Cores Recovered . | . . . . . . . . . . . . . Used . | . . . . . . . . . . . . . Hacking Detections 15 | . . . 2 7 2 . . . 1 . 3 . Full Trace Events 1 | . . . . 1 . . . . . . . . Feedback Events . | . . . . . . . . . . . . . Feedback Blocked . | . . . . . . . . . . . . . Robot Schematics Acquired . | . . . . . . . . . . . . . Robots Built . | . . . . . . . . . . . . . Authchips . | . . . . . . . . . . . . . Time . | . . . . . . . . . . . . . Total Robot Build Rating . | . . . . . . . . . . . . . Part Schematics Acquired . | . . . . . . . . . . . . . Parts Built . | . . . . . . . . . . . . . Authchips . | . . . . . . . . . . . . . Time . | . . . . . . . . . . . . . Total Part Build Rating . | . . . . . . . . . . . . . Parts Repaired . | . . . . . . . . . . . . . Time . | . . . . . . . . . . . . . Parts Recycled . | . . . . . . . . . . . . . Recycled Matter . | . . . . . . . . . . . . . Retrieved Matter . | . . . . . . . . . . . . . Retrieved Components . | . . . . . . . . . . . . . Parts Scanalyzed . | . . . . . . . . . . . . . Part Schematics Acquired . | . . . . . . . . . . . . . Parts Damaged . | . . . . . . . . . . . . . Bothacking | -11 -10 -10 -9 -9 -8 -7 -7 -7 -6 -6 -5 -5 ------------ Run | Yrd Mat Min Mat Sto Mat Fac Low Low Fac DSF Fac Ext Used RIF Installer . | . . . . . . . . . . . . . Robots Hacked . | . . . . . . . . . . . . . Non-combat . | . . . . . . . . . . . . . Combat . | . . . . . . . . . . . . . Robot Hacks Applied . | . . . . . . . . . . . . . Relay Couplers Released 4 | . . . . 4 . . . . . . . . Machine Destruction 4 | . . . . 4 . . . . . . . . Fabnet Peak Effective % . | . . . . . . . . . . . . . Robots Rewired . | . . . . . . . . . . . . . Allies Hacked . | . . . . . . . . . . . . . Hacks Repelled . | . . . . . . . . . . . . . Allies | -11 -10 -10 -9 -9 -8 -7 -7 -7 -6 -6 -5 -5 -------- Run | Yrd Mat Min Mat Sto Mat Fac Low Low Fac DSF Fac Ext Total Allies 2 | . . 2 . . . . . . . . . . Largest Group 2 | . . 2 2 . . . . . . . . . Highest-Rated Group 50 | . . 50 50 . . . . . . . . . Highest-Rated Ally 31 | . . 31 31 . . . . . . . . . Total Orders . | . . . . . . . . . . . . . Ally Attacks 10 | . . 1 9 . . . . . . . . . Total Damage 127 | . . 22 105 . . . . . . . . . Kills 3 | . . 1 2 . . . . . . . . . Allies Corrupted . | . . . . . . . . . . . . . Allies Melted . | . . . . . . . . . . . . . Intel | -11 -10 -10 -9 -9 -8 -7 -7 -7 -6 -6 -5 -5 ------- Run | Yrd Mat Min Mat Sto Mat Fac Low Low Fac DSF Fac Ext Robot Analysis Total . | . . . . . . . . . . . . . Derelict Logs Recovered 3 | . . 1 . . . . 1 1 . . . . Drone Launches . | . . . . . . . . . . . . . Drone Recoveries . | . . . . . . . . . . . . . Exploration | -11 -10 -10 -9 -9 -8 -7 -7 -7 -6 -6 -5 -5 ------------- Run | Yrd Mat Min Mat Sto Mat Fac Low Low Fac DSF Fac Ext Turns Passed 5559 | . 556 327 382 1042 1523 254 360 21 109 181 362 442 Spaces Moved 4154 | 1 366 252 228 515 671 132 435 54 262 237 570 431 Core 267 | . 4 . . . . . 252 . . . . 11 Treads 1197 | . . . 17 418 595 132 35 . . . . . Legs 689 | 1 128 252 211 95 2 . . . . . . . Wheels . | . . . . . . . . . . . . . Hover 176 | . . . . . . . . . . . 153 23 Flight 1825 | . 234 . . 2 74 . 148 54 262 237 417 397 Fastest Speed 23 | 120 37 120 120 120 31 160 35 35 34 23 32 37 Average Speed 91 | 120 105 120 121 140 149 160 55 35 34 32 48 42 Slowest Speed 320 | 120 150 120 145 200 320 160 240 35 35 83 144 120 Overloaded Moves . | . . . . . . . . . . . . . Propulsion Burnouts . | . . . . . . . . . . . . . Robots Hopped 5 | . 1 . . . 1 . . . . 1 1 1 Cave-ins Triggered . | . . . . . . . . . . . . . Exploration Rate (%) 35 | 2 46 74 19 49 53 4 58 11 8 91 17 30 Regions Visited 12 Branch Regions 5 Pre-discovered Areas . | . . . . . . . . . . . . . Known Exits Taken 2 | . . . 1 . . . . . 1 . . . Unknown Exits Taken 9 | 1 1 1 . 1 1 1 1 1 . . 1 . Scrap Searched 1 | . . . . . . . 1 . . . . . Spaces Dug . | . . . . . . . . . . . . . Terrain Destroyed 99 | . . . . . 2 . . . . 97 . . Melee . | . . . . . . . . . . . . . Projectile . | . . . . . . . . . . . . . AOE 99 | . . . . . 2 . . . . 97 . . Terrain Rammed 1 | . . . . . . . . . . . . 1 Walls Destroyed . | . . . . . . . . . . . . . Machines Disabled 1 | . . . . . . . . . . . . 1 Actions | -11 -10 -10 -9 -9 -8 -7 -7 -7 -6 -6 -5 -5 --------- Run | Yrd Mat Min Mat Sto Mat Fac Low Low Fac DSF Fac Ext Total 5448 | . 472 271 307 708 1015 156 517 55 280 324 655 688 Wait 559 | . 10 14 23 64 87 . 49 2 6 42 22 240 Move 4132 | . 363 251 227 514 668 131 434 53 261 234 567 429 Hop 5 | . 1 . . . 1 . . . . 1 1 1 Pick Up 117 | . 19 1 13 9 42 4 3 . 4 4 11 7 Fast Attach 30 | . 2 . 2 10 4 . 2 . 3 7 . . Attach 85 | . 7 . 4 7 29 5 5 . 4 4 14 6 Detach 14 | . 2 . . 2 4 . . . 1 4 1 . Swap 64 | . 8 1 7 10 34 1 . . . 3 . . Drop 101 | . 16 1 13 14 33 3 2 . 1 9 9 . Fire 200 | . 44 3 . . 107 12 19 . . 12 3 . Melee 98 | . . . 18 78 2 . . . . . . . Ram 18 | . . . . . . . 3 . . 2 11 2 Kick . | . . . . . . . . . . . . . Crush 4 | . . . . . 4 . . . . . . . Escape Stasis 19 | . . . . . . . . . . . 16 3 Rewire 2 | . . . . . . . . . . 2 . . Trap . | . . . . . . . . . . . . . Miscellaneous . | . . . . . . . . . . . . . Route ------- -11/Scrapyard -10/Materials (discovered 2 exits: [*Min x2]) -10/Mines -9/Materials (discovered 2 exits: *Sto x2) -9/Storage -8/Materials (discovered 2 exits: [*Fac x2]) -7/Factory (discovered 2 exits: *Fac / [*Low]) -7/Lower Caves -7/Lower Caves -6/Factory (discovered 2 exits: Fac / DSF) -6/DSF -5/Factory -5/Extension History --------- Turn | Location | Event 1 | -11/Scrapyard | Discovered new exit (range 0) 1 | -11/Scrapyard | Entered Materials 304 | -10/Materials | Discovered new exit (range 15) 314 | -10/Materials | Build established: Mutant 407 | -10/Materials | Core integrity fell below 50% 426 | -10/Materials | Core integrity fell below 20% 442 | -10/Materials | Lost 5 parts (1p2n2w) 529 | -10/Materials | Discovered new exit (range 15) 557 | -10/Materials | Entered Mines 572 | -10/Mines | Learned location of 1 exit from Materials 722 | -10/Mines | Received a Rocket Launcher from a helpful Derelict 729 | -10/Mines | Assembled infested the area 734 | -10/Mines | Assisted by a Guerilla fighting off Assembled 866 | -10/Mines | Discovered new exit (range 5) 884 | -10/Mines | Entered Materials 884 | -9/Materials | Accompanied by 2 allies 884 | -9/Materials | Evolved 2 slots: Propulsion x1, Utility x1 885 | -9/Materials | Identified exit to Storage 889 | -9/Materials | Led the pair of lost Derelicts to an unsafe place 1177 | -9/Materials | Build established: Gladiator 1246 | -9/Materials | Discovered exit to Storage (range 4) 1266 | -9/Materials | Entered Storage 1860 | -9/Storage | Identified exit to Garrison 2179 | -9/Storage | Core integrity fell below 50% 2260 | -9/Storage | Discovered new exit (range 10) 2308 | -9/Storage | Entered Materials 2308 | -8/Materials | Evolved 2 slots: Propulsion x1, Utility x1 2713 | -8/Materials | Lost 3 parts (1p1n1w) 2816 | -8/Materials | Garrison activated, responded to threat 2899 | -8/Materials | Destroyed 9 combat bots 3083 | -8/Materials | Discovered new exit (range 10) 3180 | -8/Materials | Build established: Scavenger-Mutant 3575 | -8/Materials | Discovered new exit (range 11) 3621 | -8/Materials | Core integrity fell below 50% 3831 | -8/Materials | Entered Factory 3831 | -7/Factory | Evolved 2 slots: Propulsion x1, Utility x1 4000 | -7/Factory | Lost 3 parts (2n1w) 4073 | -7/Factory | Discovered new exit (range 8) 4082 | -7/Factory | Discovered new exit (range 11) 4085 | -7/Factory | Entered Lower Caves 4203 | -7/Lower Caves | Lost 8 parts (1p4n1u2w) 4224 | -7/Lower Caves | Spotted B-75 Beast 4287 | -7/Lower Caves | Core integrity fell below 50% 4318 | -7/Lower Caves | Lost 3 parts (1p1u1w) 4335 | -7/Lower Caves | Core integrity fell below 20% 4354 | -7/Lower Caves | Encountered a Warlord checkpoint 4364 | -7/Lower Caves | Learned Factory security intel 4439 | -7/Lower Caves | Discovered new exit (range 15) 4445 | -7/Lower Caves | Entered another Lower Caves area 4450 | -7/Lower Caves | Learned location of 1 exit from Factory 4459 | -7/Lower Caves | Discovered new exit (range 11) 4466 | -7/Lower Caves | Entered Factory 4466 | -6/Factory | Evolved 2 slots: Power x1, Utility x1 4467 | -6/Factory | Identified exit to Factory 4468 | -6/Factory | Build established: Mutant 4575 | -6/Factory | Identified exit to DSF 4575 | -6/Factory | Entered DSF 4605 | -6/DSF | Additional patrols routed to DSF 4730 | -6/DSF | Lost 5 parts (3n2u) 4751 | -6/DSF | Discovered exit to Factory (range 14) 4756 | -6/DSF | Entered Factory 4756 | -5/Factory | Evolved 2 slots: Propulsion x1, Utility x1 5113 | -5/Factory | Discovered new exit (range 15) 5118 | -5/Factory | Entered Extension 5136 | -5/Extension | Disrupted transfer network 5152 | -5/Extension | Lost 11 parts (1p3n5u2w) 5463 | -5/Extension | Spotted B-75 Beast 5523 | -5/Extension | Core integrity fell below 50% 5526 | -5/Extension | Energy Cycler disabled 5526 | -5/Extension | Rescued a captive Derelict 5526 | -5/Extension | Rescued a captive Derelict 5531 | -5/Extension | Core integrity fell below 20% 5531 | -5/Extension | Rescued a captive Derelict 5532 | -5/Extension | Rescued a captive Derelict 5535 | -5/Extension | Rescued a captive Derelict 5560 | -5/Extension | Destroyed by G-50 Soldier with Heavy Laser Last Messages --------------- 05519_ Field strength at 87. 05519_ Field strength at 74. 05520_ Field strength at 46. 05521_ Field strength at 23. 05522_ Nuclear Pulse Array destroyed. 05522_ Stasis field depleted. 05526_ ALERT: Power surge detected, dispatching additional patrols. 05526_ Energy Cycler explodes. 05526_ G-50 Soldier destroyed. 05526_ Terminal disabled. 05526_ O-24 Administrator destroyed. 05527_ U-05 Engineer lays Concrete. 05529_ U-05 Engineer builds a Wall. 05532_ Antigrav System destroyed. 05533_ PY7JAA1T:X7WA H A,HT3F>4,1HV3XAP7 %AS/4J 05533_ U-05 Engineer lays Concrete. 05539_ Acquired Imp. Recalibrator. 05544_ U-05 Engineer lays Concrete. 05545_ Knocked back. 05550_ Antigrav System destroyed. Map ----- +----------------------------------------------------+ | | | | | | | | | | | | | | | | | | | | | | | | | | | | | | | | | | | | | | | | | | | ?????????????????????????????????????????????????? | | #??????#######???????????????????????????????????? | | ##?????# #########################???????????? | | ######## g ????????? | | gg b @ ????????? | | ### g ????????? | | #?# #########################???????????? | | #?#######???????????????????????????????????? | | #???????????????????????????????????????????? | | #???????????????????????????????????????????? | | ?????????????????????????????????????????? | | ###?????????????????????????????????????????? | | "T" #???????????????????????????????????????????? | | """ #???????????????????????????????????????????? | | ####+#???????????????????????????????????????????? | | ?????????????????????????????????????????????????? | | ?????????????????????????????????????????????????? | | ?????????????????????????????????????????????????? | | ?????????????????????????????????????????????????? | | ?????????????????????????????????????????????????? | | ?????????????????????????????????????????????????? | | ?????????????????????????????????????????????????? | | ?????????????????????????????????????????????????? | | ?????????????????????????????????????????????????? | | ?????????????????????????????????????????????????? | | ?????????????????????????????????????????????????? | | ?????????????????????????????????????????????????? | | ?????????????????????????????????????????????????? | | ?????????????????????????????????????????????????? | +----------------------------------------------------+ Best States ------------- Heat Dissipation 48 Energy Generation 18 Energy Capacity 310 Matter Stores 300 Matter Capacity 300 Sight Range 20 Robot Scan Range 15 Terrain Scan Density 10 Jamming Range 12 Additional Mass Support 9 Armor Coverage 225 Propulsion Shielding 66 Evasion (%) 65 Melee Accuracy 14 Recoil Reduction 5 Offensive Hacking 10 Item Schematics ----------------- None Robot Schematics ------------------ None Fabricated ------------ Nothing Alien Tech Used ----------------- None Achievements -------------- None Challenges ------------ None Game ------ Seed MicroImprovedCleaver Manual? 0 Play Time 01:14:05 Cumulative 86.2 hours Start 2024.04.21 @ 09:58:55 End 2024.04.22 @ 00:58:58 Sessions 3 Manual Loads 0 Difficulty Rogue Special Mode None Game No. 100 Rogue 85 Adventurer 15 Explorer 0 Win Type - Total 1 Types 0/0/1/0/0/0/0/0/0 Lore% 33 Gallery% 60 Achievement% 47 Wizard Run 0 Options --------- Layout 0 ASCII 0 Keyboard 0 Movement Mouse Keybinds 0 Fullscreen 2 Font 36/Smallcaps Map View 76x50 Zoom Use 0% Tactical HUD 1 Map Filters NONE Filters NONE Steam 1 RUN: 69756f53-d8d3-4052-9774-4785ec74795f